[Event "*** Titled Tuesday Blitz"]
[Site "Chess.com"]
[Date "2020.04.14"]
[Round "1"]
[White "krasavetc"]
[Black "igorkovalenko"]
[Result "1-0"]
[WhiteElo "2504"]
[BlackElo "2895"]
[TimeControl "180+1"]
[EndTime "10:07:19 PDT"]
[Termination "krasavetc won by resignation"]

1. e4 {[%clk 0:02:59]} 1... c5 {[%clk 0:02:53.2]} 2. Nc3 {[%clk 0:02:58.3]} 2...
Nc6 {[%clk 0:02:51.9]} 3. Nf3 {[%clk 0:02:55.6]} 3... g6 {[%clk 0:02:48.9]} 4.
Bc4 {[%clk 0:02:55.5]} 4... Bg7 {[%clk 0:02:48.3]} 5. O-O {[%clk 0:02:56.1]}
5... d6 {[%clk 0:02:46.5]} 6. d3 {[%clk 0:02:56.4]} 6... e6 {[%clk 0:02:42.8]}
7. h3 {[%clk 0:02:56.7]} 7... Nge7 {[%clk 0:02:42]} 8. Bg5 {[%clk 0:02:55.3]}
8... h6 {[%clk 0:02:36.3]} 9. Bh4 {[%clk 0:02:55.2]} 9... O-O {[%clk 0:02:34.9]}
10. Bb3 {[%clk 0:02:52.4]} 10... a6 {[%clk 0:02:12.5]} 11. a4 {[%clk 0:02:40.7]}
11... b6 {[%clk 0:02:12.3]} 12. Rb1 {[%clk 0:02:38.2]} 12... Kh7 {[%clk
0:02:10.2]} 13. Ne2 {[%clk 0:02:37]} 13... Qc7 {[%clk 0:02:08.2]} 14. Bg3 {[%clk
0:02:34.9]} 14... b5 {[%clk 0:02:02.9]} 15. c3 {[%clk 0:02:33.9]} 15... Bb7
{[%clk 0:02:01]} 16. Bc2 {[%clk 0:02:29.1]} 16... e5 {[%clk 0:02:01.2]} 17. Nh4
{[%clk 0:02:17.6]} 17... d5 {[%clk 0:01:42.7]} 18. exd5 {[%clk 0:02:04.4]} 18...
Nxd5 {[%clk 0:01:41.4]} 19. d4 {[%clk 0:02:01.7]} 19... cxd4 {[%clk 0:01:34.5]}
20. cxd4 {[%clk 0:02:01.4]} 20... Rad8 {[%clk 0:01:34]} 21. axb5 {[%clk
0:01:49.1]} 21... axb5 {[%clk 0:01:32]} 22. Nf3 {[%clk 0:01:46.1]} 22... Qe7
{[%clk 0:01:22.1]} 23. Re1 {[%clk 0:01:41.3]} 23... e4 {[%clk 0:01:16.7]} 24.
Nc3 {[%clk 0:01:38.1]} 24... f5 {[%clk 0:01:11.5]} 25. Nxb5 {[%clk 0:01:16.5]}
25... Ncb4 {[%clk 0:01:01.7]} 26. Ne5 {[%clk 0:01:12.5]} 26... Nxc2 {[%clk
0:00:59.1]} 27. Qxc2 {[%clk 0:01:13.4]} 27... Nb4 {[%clk 0:00:48.9]} 28. Qa4
{[%clk 0:01:02.5]} 28... f4 {[%clk 0:00:36]} 29. Bh2 {[%clk 0:01:00.4]} 29... e3
{[%clk 0:00:35.4]} 30. fxe3 {[%clk 0:00:49.5]} 30... f3 {[%clk 0:00:33.1]} 31.
Nxf3 {[%clk 0:00:44.1]} 31... Bxf3 {[%clk 0:00:27.7]} 32. gxf3 {[%clk
0:00:44.1]} 32... Rxf3 {[%clk 0:00:28.6]} 33. Nd6 {[%clk 0:00:31.5]} 33... Rxd6
{[%clk 0:00:20.5]} 34. Qxb4 {[%clk 0:00:30.4]} 34... Qg5+ {[%clk 0:00:19.9]} 35.
Kh1 {[%clk 0:00:29.6]} 35... Re6 {[%clk 0:00:20.3]} 36. Qd2 {[%clk 0:00:28]}
36... Rxh3 {[%clk 0:00:20.3]} 37. Qg2 {[%clk 0:00:25.8]} 37... Qh5 {[%clk
0:00:20.6]} 38. Rf1 {[%clk 0:00:22.7]} 38... Re4 {[%clk 0:00:20.4]} 39. Rf7
{[%clk 0:00:21.8]} 39... g5 {[%clk 0:00:20.6]} 40. Qxe4+ {[%clk 0:00:18.6]}
40... Kg8 {[%clk 0:00:18.6]} 41. Qe8+ {[%clk 0:00:18.7]} 41... Kh7 {[%clk
0:00:19.3]} 42. Rxg7+ {[%clk 0:00:18.8]} 42... Kxg7 {[%clk 0:00:20.2]} 43. Qxh5
{[%clk 0:00:19.3]} 43... Rxh5 {[%clk 0:00:21.1]} 1-0

[Event "*** Titled Tuesday Blitz"]
[Site "Chess.com"]
[Date "2020.04.14"]
[Round "1"]
[White "swayamsm"]
[Black "talaicito"]
[Result "1-0"]
[WhiteElo "2665"]
[BlackElo "2320"]
[TimeControl "180+1"]
[EndTime "10:07:19 PDT"]
[Termination "swayamsm won on time"]

1. d4 {[%clk 0:03:00.9]} 1... e6 {[%clk 0:02:58.5]} 2. Nf3 {[%clk 0:03:00.5]}
2... f5 {[%clk 0:02:56]} 3. g3 {[%clk 0:02:55.9]} 3... Nf6 {[%clk 0:02:55.8]} 4.
Bg2 {[%clk 0:02:56.8]} 4... Be7 {[%clk 0:02:56.2]} 5. O-O {[%clk 0:02:57.7]}
5... O-O {[%clk 0:02:56.8]} 6. c4 {[%clk 0:02:51.4]} 6... d6 {[%clk 0:02:56.9]}
7. Nc3 {[%clk 0:02:51.5]} 7... Ne4 {[%clk 0:02:56.1]} 8. Nxe4 {[%clk 0:02:49.9]}
8... fxe4 {[%clk 0:02:56.2]} 9. Nd2 {[%clk 0:02:50.8]} 9... d5 {[%clk
0:02:56.8]} 10. e3 {[%clk 0:02:45.6]} 10... Nc6 {[%clk 0:02:32.2]} 11. f3 {[%clk
0:02:44.7]} 11... exf3 {[%clk 0:02:31.1]} 12. Nxf3 {[%clk 0:02:42.7]} 12... Bd7
{[%clk 0:02:21.5]} 13. Qe2 {[%clk 0:02:38.6]} 13... Be8 {[%clk 0:02:14.3]} 14.
Bd2 {[%clk 0:02:27.7]} 14... Bg6 {[%clk 0:02:10.5]} 15. Rac1 {[%clk 0:02:23.8]}
15... Qd7 {[%clk 0:01:55.1]} 16. cxd5 {[%clk 0:02:10.1]} 16... exd5 {[%clk
0:01:53.9]} 17. Bc3 {[%clk 0:02:08.4]} 17... Qe6 {[%clk 0:01:39.4]} 18. Ne5
{[%clk 0:02:05.2]} 18... Nxe5 {[%clk 0:01:34]} 19. dxe5 {[%clk 0:02:04.9]} 19...
c6 {[%clk 0:01:10.2]} 20. h4 {[%clk 0:01:53.9]} 20... Bf5 {[%clk 0:00:50.6]} 21.
Rf4 {[%clk 0:01:52.9]} 21... g5 {[%clk 0:00:43.1]} 22. hxg5 {[%clk 0:01:49]}
22... Bxg5 {[%clk 0:00:44]} 23. Rf2 {[%clk 0:01:48.7]} 23... Bg4 {[%clk
0:00:43.3]} 24. Qd2 {[%clk 0:01:47.7]} 24... Rxf2 {[%clk 0:00:41.4]} 25. Qxf2
{[%clk 0:01:48.6]} 25... Rf8 {[%clk 0:00:40.8]} 26. Qd2 {[%clk 0:01:49.1]} 26...
Qh6 {[%clk 0:00:39.9]} 27. Re1 {[%clk 0:01:42.2]} 27... Bh3 {[%clk 0:00:31.5]}
28. Bd4 {[%clk 0:01:24.3]} 28... Qh5 {[%clk 0:00:25.6]} 29. e6 {[%clk
0:01:16.3]} 29... Bxe6 {[%clk 0:00:20.7]} 30. Bxa7 {[%clk 0:01:11.6]} 30... Qg4
{[%clk 0:00:19.9]} 31. Kh2 {[%clk 0:01:05]} 31... Qh5+ {[%clk 0:00:19.9]} 32.
Kg1 {[%clk 0:01:05.1]} 32... Qg4 {[%clk 0:00:20.3]} 33. Bc5 {[%clk 0:00:59]}
33... Rf7 {[%clk 0:00:18.2]} 34. Kh2 {[%clk 0:00:56.5]} 34... Qh5+ {[%clk
0:00:17.7]} 35. Kg1 {[%clk 0:00:57]} 35... Qg4 {[%clk 0:00:18.3]} 36. Bd6 {[%clk
0:00:57.4]} 36... Bh6 {[%clk 0:00:12.1]} 37. Bf4 {[%clk 0:00:51.6]} 37... Bg7
{[%clk 0:00:09.9]} 38. Qf2 {[%clk 0:00:45.5]} 38... h5 {[%clk 0:00:09]} 39. Bf3
{[%clk 0:00:45.5]} 39... Qg6 {[%clk 0:00:08.2]} 40. Qh2 {[%clk 0:00:43.9]} 40...
Bg4 {[%clk 0:00:07.8]} 41. Qg2 {[%clk 0:00:41.3]} 41... Bf6 {[%clk 0:00:03.2]}
42. b3 {[%clk 0:00:40.1]} 42... Bc3 {[%clk 0:00:02.7]} 43. Re2 {[%clk
0:00:38.8]} 43... d4 {[%clk 0:00:02.5]} 44. exd4 {[%clk 0:00:36]} 44... Bxd4+
{[%clk 0:00:02.2]} 45. Kh2 {[%clk 0:00:36.3]} 1-0

[Event "*** Titled Tuesday Blitz"]
[Site "Chess.com"]
[Date "2020.04.14"]
[Round "1"]
[White "Guenplen"]
[Black "arminmusovic"]
[Result "1-0"]
[WhiteElo "2946"]
[BlackElo "2497"]
[TimeControl "180+1"]
[EndTime "10:07:20 PDT"]
[Termination "Guenplen won by checkmate"]

1. Nf3 {[%clk 0:03:00.9]} 1... a6 {[%clk 0:02:59.7]} 2. e4 {[%clk 0:02:59.3]}
2... e6 {[%clk 0:03:00]} 3. d4 {[%clk 0:02:59.3]} 3... d5 {[%clk 0:03:00.4]} 4.
Nbd2 {[%clk 0:02:52.3]} 4... c5 {[%clk 0:02:58.7]} 5. dxc5 {[%clk 0:02:50.1]}
5... Bxc5 {[%clk 0:02:58.1]} 6. Bd3 {[%clk 0:02:50.3]} 6... Nc6 {[%clk
0:02:55.2]} 7. O-O {[%clk 0:02:48.6]} 7... Nge7 {[%clk 0:02:54.9]} 8. a3 {[%clk
0:02:48.5]} 8... O-O {[%clk 0:02:53.5]} 9. b4 {[%clk 0:02:45.1]} 9... Ba7 {[%clk
0:02:53.8]} 10. c4 {[%clk 0:02:37.1]} 10... Ng6 {[%clk 0:02:36]} 11. exd5 {[%clk
0:02:26.5]} 11... exd5 {[%clk 0:02:33.1]} 12. c5 {[%clk 0:02:21]} 12... Bg4
{[%clk 0:02:27.8]} 13. h3 {[%clk 0:02:14.5]} 13... Nf4 {[%clk 0:02:28.1]} 14.
hxg4 {[%clk 0:02:10.7]} 14... Nxd3 {[%clk 0:02:28.3]} 15. Nb3 {[%clk 0:02:10.9]}
15... Nxc1 {[%clk 0:02:24.9]} 16. Rxc1 {[%clk 0:02:11.8]} 16... Rc8 {[%clk
0:02:22.8]} 17. Qd3 {[%clk 0:02:09.1]} 17... Qd7 {[%clk 0:02:20.2]} 18. Qf5
{[%clk 0:02:01.2]} 18... Qe6 {[%clk 0:02:12.6]} 19. Nbd4 {[%clk 0:01:58.4]}
19... Qe4 {[%clk 0:01:58.5]} 20. Rfe1 {[%clk 0:01:57.5]} 20... Nxd4 {[%clk
0:01:58.6]} 21. Qxe4 {[%clk 0:01:54.5]} 21... dxe4 {[%clk 0:01:55.4]} 22. Nxd4
{[%clk 0:01:54.8]} 22... Rfe8 {[%clk 0:01:45.7]} 23. Nf5 {[%clk 0:01:50]} 23...
Bb8 {[%clk 0:01:45.5]} 24. Rcd1 {[%clk 0:01:45]} 24... g6 {[%clk 0:01:41.8]} 25.
Ne3 {[%clk 0:01:45.2]} 25... Rcd8 {[%clk 0:01:39.8]} 26. Kf1 {[%clk 0:01:27.8]}
26... Kg7 {[%clk 0:01:38.2]} 27. Ke2 {[%clk 0:01:27.7]} 27... Bf4 {[%clk
0:01:34.9]} 28. g3 {[%clk 0:01:21.7]} 28... Bc7 {[%clk 0:01:05.5]} 29. Nc4
{[%clk 0:01:16.5]} 29... f5 {[%clk 0:01:01.2]} 30. gxf5 {[%clk 0:01:15.7]} 30...
gxf5 {[%clk 0:01:02.1]} 31. Ne3 {[%clk 0:01:15.9]} 31... f4 {[%clk 0:00:56.3]}
32. gxf4 {[%clk 0:01:14.2]} 32... Bxf4 {[%clk 0:00:54.8]} 33. Rg1+ {[%clk
0:01:11]} 33... Kh8 {[%clk 0:00:48]} 34. Nd5 {[%clk 0:01:07.1]} 34... Bh6 {[%clk
0:00:33.6]} 35. Nf6 {[%clk 0:01:01.3]} 35... Rxd1 {[%clk 0:00:21.3]} 36. Rxd1
{[%clk 0:01:02.2]} 36... Rf8 {[%clk 0:00:20.4]} 37. Nxe4 {[%clk 0:00:58.9]}
37... Bf4 {[%clk 0:00:19.4]} 38. Rd7 {[%clk 0:00:57.2]} 38... h5 {[%clk
0:00:18.8]} 39. Rd5 {[%clk 0:00:51.9]} 39... Re8 {[%clk 0:00:13.4]} 40. Rxh5+
{[%clk 0:00:50.6]} 40... Kg7 {[%clk 0:00:13]} 41. f3 {[%clk 0:00:51]} 41... Bc1
{[%clk 0:00:12.7]} 42. a4 {[%clk 0:00:51.1]} 42... Ba3 {[%clk 0:00:12.2]} 43. b5
{[%clk 0:00:51.6]} 43... axb5 {[%clk 0:00:11.2]} 44. axb5 {[%clk 0:00:52.5]}
44... Kg6 {[%clk 0:00:11.8]} 45. Rd5 {[%clk 0:00:50.5]} 45... Rc8 {[%clk
0:00:10.2]} 46. Kd3 {[%clk 0:00:47.6]} 46... Ra8 {[%clk 0:00:09.6]} 47. Rd6+
{[%clk 0:00:43.9]} 47... Kf5 {[%clk 0:00:09.9]} 48. Rf6+ {[%clk 0:00:43.2]}
48... Ke5 {[%clk 0:00:10.1]} 49. f4+ {[%clk 0:00:43.7]} 49... Kd5 {[%clk
0:00:10.5]} 50. Rd6# {[%clk 0:00:44.6]} 1-0

[Event "*** Titled Tuesday Blitz"]
[Site "Chess.com"]
[Date "2020.04.14"]
[Round "1"]
[White "2165149677570"]
[Black "shyam"]
[Result "1/2-1/2"]
[WhiteElo "2305"]
[BlackElo "2630"]
[TimeControl "180+1"]
[EndTime "10:07:20 PDT"]
[Termination "Game drawn by repetition"]

1. e4 {[%clk 0:02:59.3]} 1... c5 {[%clk 0:02:59.9]} 2. Nf3 {[%clk 0:02:57.9]}
2... Nc6 {[%clk 0:03:00.5]} 3. Bb5 {[%clk 0:02:57.2]} 3... Nf6 {[%clk 0:03:00]}
4. e5 {[%clk 0:02:50.4]} 4... Ng4 {[%clk 0:02:59.2]} 5. Qe2 {[%clk 0:02:46.5]}
5... g6 {[%clk 0:02:54.8]} 6. h3 {[%clk 0:02:42.3]} 6... Nh6 {[%clk 0:02:53.5]}
7. O-O {[%clk 0:02:33.4]} 7... Bg7 {[%clk 0:02:50.7]} 8. d3 {[%clk 0:02:25.3]}
8... O-O {[%clk 0:02:43.8]} 9. Nc3 {[%clk 0:02:23.6]} 9... Nf5 {[%clk
0:02:40.2]} 10. Bxc6 {[%clk 0:02:20.5]} 10... dxc6 {[%clk 0:02:39.1]} 11. Bf4
{[%clk 0:02:10.1]} 11... b6 {[%clk 0:02:21]} 12. a4 {[%clk 0:01:56.6]} 12... a5
{[%clk 0:02:13.7]} 13. Qe4 {[%clk 0:01:33.5]} 13... Bb7 {[%clk 0:01:15.8]} 14.
Ne2 {[%clk 0:01:33.1]} 14... Qd5 {[%clk 0:01:12.3]} 15. g4 {[%clk 0:01:11.9]}
15... Qxe4 {[%clk 0:01:10.1]} 16. dxe4 {[%clk 0:01:12.8]} 16... Ba6 {[%clk
0:01:06.4]} 17. Rfe1 {[%clk 0:01:05.8]} 17... Bxe2 {[%clk 0:00:55.8]} 18. Rxe2
{[%clk 0:01:06.7]} 18... Nd4 {[%clk 0:00:56.5]} 19. Nxd4 {[%clk 0:01:04.2]}
19... cxd4 {[%clk 0:00:57.4]} 20. Rd2 {[%clk 0:00:51.2]} 20... c5 {[%clk
0:00:56.4]} 21. c3 {[%clk 0:00:46.9]} 21... dxc3 {[%clk 0:00:54.4]} 22. bxc3
{[%clk 0:00:47.8]} 22... Rfd8 {[%clk 0:00:55]} 23. Rad1 {[%clk 0:00:47.6]} 23...
Rxd2 {[%clk 0:00:53.1]} 24. Rxd2 {[%clk 0:00:48.5]} 24... Kf8 {[%clk 0:00:50.8]}
25. Rb2 {[%clk 0:00:22.9]} 25... Ra6 {[%clk 0:00:48.3]} 26. c4 {[%clk
0:00:20.6]} 26... Ke8 {[%clk 0:00:48]} 27. Bg3 {[%clk 0:00:19.1]} 27... Kd7
{[%clk 0:00:46.8]} 28. f4 {[%clk 0:00:19.7]} 28... Kc6 {[%clk 0:00:46.4]} 29.
Kf2 {[%clk 0:00:19.9]} 29... Ra8 {[%clk 0:00:46.3]} 30. Ke3 {[%clk 0:00:20]}
30... e6 {[%clk 0:00:45.7]} 31. Rd2 {[%clk 0:00:20.1]} 31... Bf8 {[%clk
0:00:46.1]} 32. f5 {[%clk 0:00:19.1]} 32... Be7 {[%clk 0:00:39.5]} 33. h4 {[%clk
0:00:16.9]} 33... Rd8 {[%clk 0:00:37.9]} 34. Rxd8 {[%clk 0:00:14.9]} 34... Bxd8
{[%clk 0:00:38.8]} 35. Kf4 {[%clk 0:00:08.8]} 35... Kd7 {[%clk 0:00:27.8]} 36.
f6 {[%clk 0:00:05.8]} 36... Ke8 {[%clk 0:00:25.6]} 37. Kg5 {[%clk 0:00:05.5]}
37... Kf8 {[%clk 0:00:26.2]} 38. Kh6 {[%clk 0:00:06.1]} 38... Kg8 {[%clk
0:00:27.1]} 39. Bf2 {[%clk 0:00:06.4]} 39... Bc7 {[%clk 0:00:27.1]} 40. Bg3
{[%clk 0:00:06.3]} 40... Bb8 {[%clk 0:00:27.3]} 41. h5 {[%clk 0:00:05.9]} 41...
Bc7 {[%clk 0:00:26.5]} 42. Bh2 {[%clk 0:00:05.6]} 42... Bd8 {[%clk 0:00:26.1]}
43. Bg3 {[%clk 0:00:05.6]} 43... Bc7 {[%clk 0:00:26.4]} 44. Bf4 {[%clk
0:00:05.7]} 44... Bb8 {[%clk 0:00:25.6]} 45. Bg3 {[%clk 0:00:06]} 45... Bc7
{[%clk 0:00:25.9]} 1/2-1/2

[Event "*** Titled Tuesday Blitz"]
[Site "Chess.com"]
[Date "2020.04.14"]
[Round "1"]
[White "Gulkov_Igor"]
[Black "BaMBoMaTTo"]
[Result "0-1"]
[WhiteElo "2367"]
[BlackElo "2716"]
[TimeControl "180+1"]
[EndTime "10:07:21 PDT"]
[Termination "BaMBoMaTTo won by resignation"]

1. Nf3 {[%clk 0:02:59]} 1... Nf6 {[%clk 0:02:59.3]} 2. c4 {[%clk 0:02:58.7]}
2... e6 {[%clk 0:02:59.5]} 3. Nc3 {[%clk 0:02:58.8]} 3... d5 {[%clk 0:02:59.7]}
4. d4 {[%clk 0:02:58.8]} 4... Bb4 {[%clk 0:02:59.8]} 5. Bg5 {[%clk 0:02:58.4]}
5... h6 {[%clk 0:02:59.1]} 6. Bxf6 {[%clk 0:02:58.2]} 6... Qxf6 {[%clk 0:03:00]}
7. e3 {[%clk 0:02:58.7]} 7... O-O {[%clk 0:02:54.4]} 8. Rc1 {[%clk 0:02:55.9]}
8... dxc4 {[%clk 0:02:53.3]} 9. Bxc4 {[%clk 0:02:55.1]} 9... c5 {[%clk
0:02:53.9]} 10. O-O {[%clk 0:02:54.8]} 10... cxd4 {[%clk 0:02:53.3]} 11. Qxd4
{[%clk 0:02:54.2]} 11... Qxd4 {[%clk 0:02:40.8]} 12. Nxd4 {[%clk 0:02:53.8]}
12... Bd7 {[%clk 0:02:32.1]} 13. a3 {[%clk 0:02:52.3]} 13... Be7 {[%clk
0:02:26.6]} 14. Rfd1 {[%clk 0:02:41.2]} 14... Rd8 {[%clk 0:01:50.3]} 15. Ndb5
{[%clk 0:02:13.1]} 15... Nc6 {[%clk 0:01:44.8]} 16. Nd6 {[%clk 0:02:08.4]} 16...
Rab8 {[%clk 0:01:37.6]} 17. Be2 {[%clk 0:01:55.2]} 17... Kf8 {[%clk 0:01:18.4]}
18. Nce4 {[%clk 0:01:32.8]} 18... Bxd6 {[%clk 0:00:56.7]} 19. Nxd6 {[%clk
0:01:28.9]} 19... Ke7 {[%clk 0:00:57]} 20. Ne4 {[%clk 0:01:25.9]} 20... Ne5
{[%clk 0:00:50.9]} 21. f4 {[%clk 0:01:19.2]} 21... Bc6 {[%clk 0:00:50.9]} 22.
Nc5 {[%clk 0:01:07.2]} 22... Rxd1+ {[%clk 0:00:47.4]} 23. Rxd1 {[%clk
0:01:04.9]} 23... Nd7 {[%clk 0:00:48.3]} 24. Nxd7 {[%clk 0:01:00.2]} 24... Bxd7
{[%clk 0:00:49.2]} 25. Rc1 {[%clk 0:00:59.7]} 25... Bc6 {[%clk 0:00:44.9]} 26.
Kf2 {[%clk 0:00:49.6]} 26... a5 {[%clk 0:00:36.2]} 27. g3 {[%clk 0:00:49]} 27...
Kd6 {[%clk 0:00:35.8]} 28. Bd3 {[%clk 0:00:35.1]} 28... f5 {[%clk 0:00:34.1]}
29. Ke2 {[%clk 0:00:28.2]} 29... g5 {[%clk 0:00:33.9]} 30. Rd1 {[%clk
0:00:23.6]} 30... Kc5 {[%clk 0:00:33.1]} 31. Rc1+ {[%clk 0:00:23.1]} 31... Kd6
{[%clk 0:00:32.4]} 32. Rd1 {[%clk 0:00:22.8]} 32... Ke7 {[%clk 0:00:32.6]} 33.
Rc1 {[%clk 0:00:22.6]} 33... Kf6 {[%clk 0:00:29.9]} 34. Rc5 {[%clk 0:00:21]}
34... Ra8 {[%clk 0:00:26.6]} 35. Bc4 {[%clk 0:00:20.8]} 35... Ke7 {[%clk
0:00:21.5]} 36. Re5 {[%clk 0:00:20.8]} 36... Bd7 {[%clk 0:00:21.5]} 37. Re4
{[%clk 0:00:19.7]} 37... fxe4 {[%clk 0:00:21.1]} 0-1

[Event "*** Titled Tuesday Blitz"]
[Site "Chess.com"]
[Date "2020.04.14"]
[Round "1"]
[White "Y0ung_Capablanca"]
[Black "Falia-p"]
[Result "1-0"]
[WhiteElo "2679"]
[BlackElo "2333"]
[TimeControl "180+1"]
[EndTime "10:07:21 PDT"]
[Termination "Y0ung_Capablanca won by resignation"]

1. e4 {[%clk 0:03:00.9]} 1... c6 {[%clk 0:02:59.3]} 2. d4 {[%clk 0:03:00]} 2...
d5 {[%clk 0:03:00.2]} 3. exd5 {[%clk 0:03:00.9]} 3... cxd5 {[%clk 0:03:00]} 4.
Bd3 {[%clk 0:03:01.2]} 4... Nc6 {[%clk 0:02:55.8]} 5. c3 {[%clk 0:03:00.5]} 5...
Qc7 {[%clk 0:02:55.8]} 6. Ne2 {[%clk 0:02:57.9]} 6... Bg4 {[%clk 0:02:55.7]} 7.
O-O {[%clk 0:02:50.7]} 7... Nf6 {[%clk 0:02:51.6]} 8. Qe1 {[%clk 0:02:47.1]}
8... Bxe2 {[%clk 0:02:49.6]} 9. Qxe2 {[%clk 0:02:46.7]} 9... e6 {[%clk
0:02:50.5]} 10. Nd2 {[%clk 0:02:45.9]} 10... Bd6 {[%clk 0:02:50]} 11. g3 {[%clk
0:02:45.5]} 11... O-O {[%clk 0:02:48.9]} 12. f4 {[%clk 0:02:45.1]} 12... Nd7
{[%clk 0:02:43.6]} 13. Nf3 {[%clk 0:02:44.4]} 13... Rae8 {[%clk 0:02:42.7]} 14.
Be3 {[%clk 0:02:34.7]} 14... f5 {[%clk 0:02:38.7]} 15. Ne5 {[%clk 0:02:28.3]}
15... Nf6 {[%clk 0:02:36.6]} 16. Rac1 {[%clk 0:02:20]} 16... Ne4 {[%clk
0:02:27.8]} 17. c4 {[%clk 0:02:13.5]} 17... Bxe5 {[%clk 0:02:26.4]} 18. dxe5
{[%clk 0:02:07.5]} 18... Qd7 {[%clk 0:02:12.6]} 19. Rfd1 {[%clk 0:02:00.2]}
19... Nb4 {[%clk 0:01:59.2]} 20. Bxe4 {[%clk 0:01:53.2]} 20... fxe4 {[%clk
0:01:58.8]} 21. Bc5 {[%clk 0:01:52.8]} 21... Nd3 {[%clk 0:01:58.9]} 22. Bxf8
{[%clk 0:01:42.4]} 22... Nxc1 {[%clk 0:01:57.1]} 23. Rxc1 {[%clk 0:01:42.5]}
23... Rxf8 {[%clk 0:01:55.6]} 24. Rd1 {[%clk 0:01:38.4]} 24... Qc6 {[%clk
0:01:50.8]} 25. cxd5 {[%clk 0:01:38.3]} 25... exd5 {[%clk 0:01:50.7]} 26. Qd2
{[%clk 0:01:37.3]} 26... Rd8 {[%clk 0:01:46.5]} 27. Qd4 {[%clk 0:01:36.9]} 27...
b6 {[%clk 0:01:43.1]} 28. f5 {[%clk 0:01:29.5]} 28... Qc5 {[%clk 0:01:37.2]} 29.
e6 {[%clk 0:01:23.2]} 29... Kf8 {[%clk 0:01:34.4]} 30. Kf2 {[%clk 0:01:22.4]}
30... Ke7 {[%clk 0:01:32.9]} 31. Ke3 {[%clk 0:01:07.1]} 31... Kd6 {[%clk
0:01:31.9]} 32. Kf4 {[%clk 0:00:54.7]} 32... Qxd4 {[%clk 0:01:31.7]} 33. Rxd4
{[%clk 0:00:54.2]} 33... Rc8 {[%clk 0:01:25.1]} 34. Rd2 {[%clk 0:00:49.2]} 34...
Rc1 {[%clk 0:01:21.6]} 35. g4 {[%clk 0:00:40.4]} 35... h6 {[%clk 0:01:19.7]} 36.
h4 {[%clk 0:00:34.2]} 36... Rf1+ {[%clk 0:01:19.2]} 37. Kg3 {[%clk 0:00:31.7]}
37... Rf3+ {[%clk 0:01:18.8]} 38. Kg2 {[%clk 0:00:31.5]} 38... Rf4 {[%clk
0:01:14.5]} 39. Rxd5+ {[%clk 0:00:27.7]} 39... Kxd5 {[%clk 0:01:00.8]} 40. e7
{[%clk 0:00:27.5]} 40... Rxg4+ {[%clk 0:01:01.1]} 41. Kh3 {[%clk 0:00:27.2]}
41... Rf4 {[%clk 0:01:00.1]} 42. e8=Q {[%clk 0:00:27]} 42... Rxf5 {[%clk
0:01:00.5]} 43. Qd7+ {[%clk 0:00:27.4]} 43... Ke5 {[%clk 0:01:00.5]} 44. Qxg7+
{[%clk 0:00:27.3]} 44... Kf4 {[%clk 0:00:58.4]} 45. Qxa7 {[%clk 0:00:26]} 45...
Kf3 {[%clk 0:00:56.9]} 46. Qxb6 {[%clk 0:00:24.4]} 46... e3 {[%clk 0:00:55.4]}
47. Qc6+ {[%clk 0:00:24.8]} 47... Kf4 {[%clk 0:00:53.7]} 48. Qc4+ {[%clk
0:00:24.5]} 48... Kf3 {[%clk 0:00:53.6]} 49. Qf1+ {[%clk 0:00:24.2]} 49... Ke4
{[%clk 0:00:53.4]} 50. Qc4+ {[%clk 0:00:24.1]} 50... Kf3 {[%clk 0:00:53.3]} 51.
Qg4+ {[%clk 0:00:22.6]} 51... Kf2 {[%clk 0:00:51.2]} 52. Qxf5+ {[%clk
0:00:22.8]} 52... Ke2 {[%clk 0:00:50.7]} 53. Qe4 {[%clk 0:00:22.3]} 53... Kd2
{[%clk 0:00:50.9]} 54. Qxe3+ {[%clk 0:00:22.4]} 54... Kxe3 {[%clk 0:00:50.9]}
55. a4 {[%clk 0:00:23.3]} 55... Kd4 {[%clk 0:00:51.2]} 56. a5 {[%clk 0:00:23.9]}
56... Kc5 {[%clk 0:00:51.7]} 57. b4+ {[%clk 0:00:24.8]} 57... Kb5 {[%clk
0:00:52.1]} 58. Kg4 {[%clk 0:00:25.5]} 58... Kxb4 {[%clk 0:00:52.8]} 59. a6
{[%clk 0:00:25.4]} 59... Kc5 {[%clk 0:00:53.7]} 60. a7 {[%clk 0:00:25.9]} 60...
Kd6 {[%clk 0:00:54.6]} 61. a8=Q {[%clk 0:00:26.5]} 1-0